fUST/lending_fUST_20250722
["ID","MTS","AMOUNT","RATE_DAILY","PERIOD"]
[374090789,1753199442065,-460.0,0.00017308,2]
[374090790,1753199442075,-1025.58,0.00017308,2]
[374090791,1753199442086,-460.0,0.00017308,2]
[374090792,1753199442098,-511.57,0.00017308,2]
[374090793,1753199442109,-460.0,0.00017308,2]
[374090794,1753199442119,-460.0,0.00017308,2]
[374090795,1753199442130,-460.0,0.00017308,2]
[374090796,1753199442140,-460.0,0.00017308,2]
[374090797,1753199442150,-503.8,0.00017308,2]
[374090798,1753199442161,-460.0,0.00017308,2]
[374090799,1753199442171,-460.0,0.00017309,2]
[374090800,1753199442182,-460.0,0.00017309,2]
[374090801,1753199442193,-460.0,0.00017309,2]
[374090802,1753199442204,-460.0,0.00017309,2]
[374090803,1753199442214,-211.64413524,0.00017309,2]
[374090804,1753199442225,-460.0,0.00017309,2]
[374090805,1753199442235,-460.0,0.00017309,2]
[374090807,1753199442246,-460.0,0.00017309,2]
[374090808,1753199442256,-460.0,0.00017309,2]
[374090809,1753199442266,-460.0,0.00017309,2]
[374090810,1753199442278,-460.0,0.00017309,2]
[374090811,1753199442288,-511.45,0.00017309,2]
[374090812,1753199442299,-192.32,0.00017309,2]
[374090813,1753199442309,-460.0,0.00017309,2]
[374090814,1753199442319,-460.0,0.00017309,2]
[374090815,1753199442330,-1494.91,0.00017309,2]
[374090816,1753199442340,-460.0,0.00017309,2]
[374090817,1753199442351,-460.0,0.00017309,2]
[374090818,1753199442362,-460.0,0.00017309,2]
[374090819,1753199442373,-460.0,0.00017309,2]
[374090820,1753199442384,-460.0,0.00017309,2]
[374090821,1753199442394,-460.0,0.00017309,2]
[374090822,1753199442405,-564.56,0.00017309,2]
[374090823,1753199442415,-460.0,0.00017309,2]
[374090824,1753199442427,-1105.59,0.00017309,2]
[374090825,1753199442438,-500.0,0.00017309,2]
[374090826,1753199442448,-1158.76,0.00017309,2]
[374090827,1753199442459,-239.84,0.00017309,2]
[374090828,1753199442469,-460.0,0.00017309,2]
[374090829,1753199442481,-460.0,0.00017309,2]
[374090830,1753199442491,-460.0,0.00017309,2]
[374090831,1753199442502,-460.0,0.00017309,2]
[374090832,1753199442513,-460.0,0.00017309,2]
[374090833,1753199442524,-460.0,0.00017309,2]
[374090834,1753199442535,-465.97814839,0.00017309,2]
[374090835,1753199442546,-460.0,0.00017309,2]
[374090836,1753199442556,-500.0,0.00017309,2]
[374090837,1753199442701,-460.0,0.0001731,2]
[374090839,1753199442712,-460.0,0.0001731,2]
[374090841,1753199442723,-460.0,0.0001731,2]
[374090843,1753199442732,-460.0,0.0001731,2]
[374090845,1753199442742,-460.0,0.0001731,2]
[374090847,1753199442751,-269.77318877,0.0001731,2]
[374090849,1753199442761,-460.0,0.0001731,2]
[374090851,1753199442771,-460.0,0.0001731,2]
[374090853,1753199442780,-460.0,0.0001731,2]
[374090855,1753199442789,-460.0,0.0001731,2]
[374090857,1753199442799,-460.0,0.0001731,2]
[374090859,1753199442808,-460.0,0.0001731,2]
[374090861,1753199442818,-460.0,0.0001731,2]
[374090863,1753199442827,-460.0,0.0001731,2]
[374090865,1753199442836,-2166.87,0.0001731,2]
[374090867,1753199442846,-460.0,0.0001731,2]
[374090869,1753199442856,-460.0,0.0001731,2]
[374090871,1753199442866,-460.0,0.0001731,2]
[374090873,1753199442875,-460.0,0.0001731,2]
[374090874,1753199442884,-460.0,0.00017311,2]
[374090876,1753199442894,-460.0,0.00017311,2]
[374090878,1753199442903,-590.37,0.00017311,2]
[374090880,1753199442913,-460.0,0.00017311,2]
[374090882,1753199442923,-325.47,0.0001734,2]
[374090884,1753199442932,-500.0,0.00017582,2]
[374090886,1753199442942,-1025.58,0.00017582,2]
[374090888,1753199442951,-511.57,0.00017582,2]
[374090890,1753199442961,-460.0,0.00017582,2]
[374090892,1753199442971,-460.0,0.00017582,2]
[374090894,1753199442980,-460.0,0.00017582,2]
[374090896,1753199442990,-503.8,0.00017582,2]
[374090898,1753199443000,-460.0,0.00017582,2]
[374090900,1753199443009,-460.0,0.00017583,2]
[374090902,1753199443024,-318.53,0.00017583,2]
[374090904,1753199443036,-460.0,0.00017583,2]
[374090906,1753199443046,-545.37,0.00017583,2]
[374090908,1753199443055,-1494.91,0.00017583,2]
[374090910,1753199443065,-460.0,0.00017583,2]
[374090912,1753199443075,-460.0,0.00017583,2]
[374090914,1753199443085,-460.0,0.00017583,2]
[374090916,1753199443095,-460.0,0.00017583,2]
[374090919,1753199443107,-593.93,0.00017583,2]
[374090920,1753199443117,-1105.59,0.00017583,2]
[374090922,1753199443126,-576.64859188,0.00017583,2]
[374090925,1753199443136,-1158.76,0.00017583,2]
[374090926,1753199443145,-460.0,0.00017583,2]
[374090929,1753199443155,-460.0,0.00017583,2]
[374090931,1753199443164,-460.0,0.00017583,2]
[374090932,1753199443174,-460.0,0.00017583,2]
[374090934,1753199443183,-460.0,0.00017583,2]
[374090936,1753199443193,-169.85909588,0.00017583,2]
[374090938,1753199443202,-460.0,0.00017583,2]
[374090940,1753199443211,-460.0,0.00017584,2]
[374090942,1753199443220,-460.0,0.00017584,2]
[374090944,1753199443230,-2166.87,0.00017584,2]
[374090946,1753199443240,-460.0,0.00017584,2]
[374090948,1753199443249,-460.0,0.00017584,2]
[374090950,1753199443259,-460.0,0.00017584,2]
[374090952,1753199443268,-460.0,0.00017585,2]
[374090954,1753199443278,-460.0,0.00017585,2]
[374090956,1753199443287,-590.37,0.00017585,2]
[374090958,1753199443297,-460.0,0.00017585,2]
[374090960,1753199443306,-1000.0,0.00017621,2]
[374090962,1753199443316,-500.0,0.00017621,2]
[374090964,1753199443325,-1000.0,0.00017621,2]
[374090966,1753199443335,-151.0,0.00017742,2]
[374090968,1753199443346,-151.0,0.00017742,2]
[374090971,1753199443359,-151.0,0.00017742,2]
[374090972,1753199443369,-151.0,0.00017742,2]
[374090975,1753199443378,-151.0,0.00017742,2]
[374090977,1753199443388,-151.0,0.00017742,2]
[374090979,1753199443397,-151.0,0.00017742,2]
[374090981,1753199443407,-151.0,0.00017742,2]
[374090983,1753199443417,-151.0,0.00017742,2]
[374090985,1753199443426,-151.0,0.00017742,2]
[374090987,1753199443436,-151.0,0.00017742,2]
[374090989,1753199443445,-215.0738,0.00017742,2]
[374090991,1753199443455,-151.0,0.00017742,2]
[374090993,1753199443464,-151.0,0.00017742,2]
[374090995,1753199443474,-151.0,0.00017742,2]
[374090996,1753199443484,-151.0,0.00017742,2]
[374090998,1753199443493,-151.0,0.00017742,2]
[374091000,1753199443503,-151.0,0.00017742,2]
[374091002,1753199443516,-151.0,0.00017742,2]
[374091005,1753199443528,-151.0,0.00017742,2]
[374091006,1753199443537,-151.0,0.00017742,2]
[374091008,1753199443546,-151.0,0.00017742,2]
[374091010,1753199443556,-151.0,0.00017742,2]
[374091012,1753199443569,-151.0,0.00017742,2]
[374091014,1753199443578,-151.0,0.00017742,2]
[374091016,1753199443587,-151.0,0.00017742,2]
[374091018,1753199443597,-151.0,0.00017742,2]
[374091021,1753199443609,-1025.58,0.00017856,2]
[374091022,1753199443618,-511.57,0.00017856,2]
[374091024,1753199443628,-460.0,0.00017856,2]
[374091026,1753199443637,-503.8,0.00017856,2]
[374091029,1753199443647,-475.55443457,0.00017856,2]
[374091031,1753199443657,-460.0,0.00017857,2]
[374091033,1753199443667,-460.0,0.00017857,2]
[374091035,1753199443676,-1494.91,0.00017857,2]
[374091037,1753199443686,-460.0,0.00017857,2]
[374091039,1753199443695,-460.0,0.00017857,2]
[374091041,1753199443705,-1105.59,0.00017857,2]
[374091043,1753199443714,-1158.76,0.00017857,2]
[374091045,1753199443724,-460.0,0.00017857,2]
[374091047,1753199443733,-460.0,0.00017857,2]
[374091049,1753199443743,-460.0,0.00017857,2]
[374091051,1753199443753,-2166.87,0.00017858,2]
[374091053,1753199443762,-460.0,0.00017858,2]
[374091055,1753199443772,-460.0,0.00017859,2]
[374091057,1753199443782,-460.0,0.00017859,2]
[374091059,1753199443791,-590.37,0.00017859,2]
[374091061,1753199443800,-460.0,0.00017859,2]
[374091063,1753199443810,-24900.0,0.00017885,2]
[374091065,1753199443819,-1309.048604,0.000179,2]
[374091067,1753199443829,-839.90542673,0.00017959,2]
[374091069,1753199443838,-160.0,0.00017959,2]
[374091071,1753199443848,-12619.94447631,0.00017959,2]
[374091073,1753199443858,-526.07605158,0.00017959,2]
[374091074,1753199443867,-160.0,0.00017959,2]
[374091076,1753199443876,-160.0,0.00017959,2]
[374091079,1753199443886,-214.6393183,0.00018008,2]
[374091081,1753199443896,-502.36811083,0.00018031,2]
[374091083,1753199443906,-500.0,0.00018031,2]
[374091085,1753199443916,-500.0,0.00018031,2]
[374091087,1753199443926,-500.0,0.00018031,2]
[374091089,1753199443936,-500.0,0.00018031,2]
[374091091,1753199443946,-412.23605928,0.00018031,2]
[374091093,1753199443955,-370000.0,0.00018032,2]
[374091095,1753199443965,-525.02452038,0.00018073,2]
[374091097,1753199443974,-502.64339329,0.00018073,2]
[374091099,1753199443983,-500.0,0.00018073,2]
[374091101,1753199443992,-500.0,0.00018073,2]
[374091103,1753199444002,-500.0,0.00018073,2]
[374091105,1753199444012,-280.65641991,0.00018073,2]
[374091107,1753199444021,-500.0,0.00018073,2]
[374091109,1753199444033,-365.34,0.00018123,3]
[374091111,1753199444043,-1025.58,0.0001813,2]
[374091113,1753199444052,-511.57,0.0001813,2]
[374091115,1753199444063,-460.0,0.0001813,2]
[374091117,1753199444074,-503.8,0.0001813,2]
[374091119,1753199444083,-460.0,0.00018131,2]
[374091121,1753199444093,-607.38,0.00018131,2]
[374091123,1753199444104,-1494.91,0.00018131,2]
[374091125,1753199444113,-460.0,0.00018131,2]
[374091127,1753199444123,-460.0,0.00018131,2]
[374091129,1753199444132,-1105.59,0.00018131,2]
[374091131,1753199444141,-1158.76,0.00018131,2]
[374091133,1753199444151,-463.11306936,0.00018131,2]
[374091135,1753199444160,-2166.87,0.00018132,2]
[374091137,1753199444169,-460.0,0.00018132,2]
[374091139,1753199444178,-460.0,0.00018133,2]
[374091141,1753199444188,-590.37,0.00018133,2]
[374091143,1753199444197,-460.0,0.00018133,2]
[374091145,1753199444206,-1309.04860383,0.00018176,2]
[374091147,1753199444216,-800.0,0.00018202,2]
[374091149,1753199444225,-1025.58,0.00018404,2]
[374091151,1753199444234,-511.57,0.00018404,2]
[374091153,1753199444244,-460.0,0.00018404,2]
[374091155,1753199444253,-503.8,0.00018404,2]
[374091157,1753199444263,-460.0,0.00018405,2]
[374091159,1753199444272,-1494.91,0.00018405,2]
[374091161,1753199444281,-460.0,0.00018405,2]
[374091163,1753199444291,-386.41,0.00018405,2]
[374091165,1753199444301,-1105.59,0.00018405,2]
[374091167,1753199444310,-1158.76,0.00018405,2]
[374091169,1753199444320,-2166.87,0.00018406,2]
[374091171,1753199444329,-460.0,0.00018407,2]
[374091173,1753199444339,-590.37,0.00018407,2]
[374091175,1753199444348,-162.08,0.00018407,2]
[374091177,1753199444358,-161.46,0.00018438,2]
[374091179,1753199444368,-1309.04860383,0.00018452,2]
[374091181,1753199444377,-502.39595311,0.00018621,2]
[374091183,1753199444387,-424.80703423,0.00018621,2]
[374091185,1753199444396,-218.33169195,0.00018621,2]
[374091187,1753199444405,-1025.58,0.00018678,2]
[374091189,1753199444415,-511.57,0.00018678,2]
[374091191,1753199444424,-460.0,0.00018678,2]
[374091193,1753199444434,-503.8,0.00018678,2]
[374091195,1753199444443,-460.0,0.00018679,2]
[374091197,1753199444453,-1494.91,0.00018679,2]
[374091199,1753199444463,-460.0,0.00018679,2]
[374091201,1753199444472,-1105.59,0.00018679,2]
[374091203,1753199444482,-1158.76,0.00018679,2]
[374091205,1753199444492,-2166.87,0.0001868,2]
[374091207,1753199444501,-460.0,0.00018681,2]
[374091209,1753199444511,-590.37,0.00018681,2]
[374091211,1753199444520,-1309.04860383,0.00018728,2]
[374091213,1753199444530,-526.23456936,0.000189,2]
[374091215,1753199444539,-302.96970909,0.000189,2]
[374091217,1753199444549,-500.0,0.00018905,2]
[374091219,1753199444559,-1025.58,0.00018952,2]
[374091221,1753199444568,-511.57,0.00018952,2]
[374091223,1753199444578,-460.0,0.00018952,2]
[374091225,1753199444587,-503.8,0.00018952,2]
[374091227,1753199444596,-460.0,0.00018953,2]
[374091229,1753199444606,-1494.91,0.00018953,2]
[374091231,1753199444616,-506.68,0.00018953,2]
[374091233,1753199444625,-1105.59,0.00018953,2]
[374091235,1753199444634,-1158.76,0.00018953,2]
[374091237,1753199444644,-2166.87,0.00018954,2]
[374091239,1753199444653,-460.0,0.00018955,2]
[374091241,1753199444663,-590.37,0.00018955,2]
[374091243,1753199444672,-1309.04860383,0.00019003,2]
[374091245,1753199444681,-223.0315306,0.00019111,2]
[374091247,1753199444690,-1090.84276416,0.00019132,2]
[374091249,1753199444700,-167.589621,0.00019178,2]
[374091251,1753199444709,-1025.58,0.00019226,2]
[374091253,1753199444718,-511.57,0.00019226,2]
[374091255,1753199444727,-460.0,0.00019226,2]
[374091257,1753199444737,-503.8,0.00019226,2]
[374091259,1753199444746,-460.0,0.00019227,2]
[374091261,1753199444755,-1494.91,0.00019227,2]
[374091263,1753199444765,-1105.59,0.00019227,2]
[374091265,1753199444774,-1158.76,0.00019227,2]
[374091267,1753199444784,-2166.87,0.00019228,2]
[374091269,1753199444793,-531.95761296,0.00019229,2]
[374091271,1753199444802,-590.37,0.00019229,2]
[374091273,1753199444812,-171.57,0.00019244,2]
[374091275,1753199444821,-1309.04860383,0.00019279,2]
[374091277,1753199444830,-800.0,0.00019298,2]
[374091279,1753199444839,-1000.0,0.00019453,2]
[374091281,1753199444849,-151.465729,0.000195,2]
[374091283,1753199444859,-151.0,0.000195,2]
[374091285,1753199444869,-1025.58,0.000195,2]
[374091287,1753199444878,-511.57,0.000195,2]
[374091289,1753199444887,-460.0,0.000195,2]
[374091291,1753199444897,-503.8,0.000195,2]
[374091293,1753199444907,-460.0,0.00019501,2]
[374091295,1753199444917,-1494.91,0.00019501,2]
[374091297,1753199444926,-1105.59,0.00019501,2]
[374091299,1753199444936,-1158.76,0.00019501,2]
[374091301,1753199444945,-2166.87,0.00019502,2]
[374091303,1753199444955,-590.37,0.00019503,2]
[374091305,1753199444965,-1309.04860383,0.00019555,2]
[374091307,1753199444975,-1025.58,0.00019774,2]
[374091309,1753199444985,-511.57,0.00019774,2]
[374091311,1753199444995,-460.0,0.00019774,2]
[374091313,1753199445005,-503.8,0.00019774,2]
[374091315,1753199445015,-460.0,0.00019775,2]
[374091317,1753199445026,-1494.91,0.00019775,2]
[374091319,1753199445035,-1105.59,0.00019775,2]
[374091321,1753199445045,-1158.76,0.00019775,2]
[374091323,1753199445054,-2166.87,0.00019776,2]
[374091325,1753199445065,-590.37,0.00019777,2]
[374091327,1753199445074,-1309.04860383,0.00019831,2]
[374091329,1753199445083,-1000.0,0.00020001,2]
[374091331,1753199445093,-1025.58,0.00020048,2]
[374091333,1753199445104,-511.57,0.00020048,2]
[374091335,1753199445114,-460.0,0.00020048,2]
[374091337,1753199445123,-503.8,0.00020048,2]
[374091339,1753199445133,-460.0,0.00020049,2]
[374091341,1753199445142,-1494.91,0.00020049,2]
[374091343,1753199445152,-1105.59,0.00020049,2]
[374091345,1753199445162,-1158.76,0.00020049,2]
[374091347,1753199445171,-2166.87,0.0002005,2]
[374091349,1753199445181,-590.37,0.00020051,2]
[374091351,1753199445191,-1309.04860383,0.00020107,2]
[374091353,1753199445200,-1025.58,0.00020322,2]
[374091355,1753199445210,-511.57,0.00020322,2]
[374091357,1753199445220,-460.0,0.00020322,2]
[374091359,1753199445230,-503.8,0.00020322,2]
[374091361,1753199445239,-460.0,0.00020323,2]
[374091363,1753199445248,-1494.91,0.00020323,2]
[374091365,1753199445258,-1105.59,0.00020323,2]
[374091367,1753199445267,-1158.76,0.00020323,2]
[374091369,1753199445276,-2166.87,0.00020324,2]
[374091371,1753199445286,-1200.0,0.00020324,2]
[374091374,1753199445295,-590.37,0.00020325,2]
[374091376,1753199445305,-1309.04860383,0.00020383,3]
[374091378,1753199445314,-800.0,0.00020394,2]
[374091380,1753199445323,-231.28369723,0.0002048,2]
[374091382,1753199445333,-205.89,0.00020527,2]
[374091384,1753199445342,-336.516,0.00020565,2]
[374091386,1753199445353,-1025.58,0.00020596,2]
[374091387,1753199445362,-511.57,0.00020596,2]
[374091390,1753199445372,-460.0,0.00020596,2]
[374091392,1753199445382,-503.8,0.00020596,2]
[374091395,1753199445392,-460.0,0.00020597,2]
[374091397,1753199445402,-1494.91,0.00020597,2]
[374091399,1753199445412,-1105.59,0.00020597,2]
[374091401,1753199445421,-1158.76,0.00020597,2]
[374091403,1753199445431,-2166.87,0.00020598,2]
[374091405,1753199445441,-590.37,0.00020599,2]
[374091407,1753199445451,-1309.04860383,0.00020659,3]
[374091409,1753199445460,-151.0,0.000208,3]
[374091411,1753199445470,-1025.58,0.0002087,2]
[374091413,1753199445480,-511.57,0.0002087,2]
[374091415,1753199445490,-460.0,0.0002087,2]
[374091417,1753199445499,-503.8,0.0002087,2]
[374091419,1753199445510,-460.0,0.00020871,2]
[374091421,1753199445521,-1494.91,0.00020871,2]
[374091423,1753199445531,-1105.59,0.00020871,2]
[374091425,1753199445540,-1158.76,0.00020871,2]
[374091427,1753199445551,-2166.87,0.00020872,2]
[374091429,1753199445560,-590.37,0.00020873,2]
[374091431,1753199445570,-1309.04860383,0.00020934,4]
[374091433,1753199445580,-1090.84276416,0.00021055,2]
[374091435,1753199445589,-151.0,0.0002112,2]
[374091437,1753199445599,-1025.58,0.00021144,2]
[374091450,1753199445708,-511.57,0.00021144,2]
[374091452,1753199445721,-460.0,0.00021144,2]
[374091454,1753199445731,-503.8,0.00021144,2]
[374091456,1753199445741,-460.0,0.00021145,2]
[374091458,1753199445751,-1494.91,0.00021145,2]
[374091460,1753199445760,-1105.59,0.00021145,2]
[374091462,1753199445770,-1158.76,0.00021145,2]
[374091463,1753199445779,-2166.87,0.00021146,2]
[374091464,1753199445789,-590.37,0.00021147,2]
[374091465,1753199445798,-151.0,0.00021186,4]
[374091466,1753199445807,-1309.04860383,0.0002121,4]
[374091467,1753199445817,-1200.0,0.0002134,2]
[374091468,1753199445826,-1025.58,0.00021418,2]
[374091469,1753199445835,-511.57,0.00021418,2]
[374091470,1753199445845,-460.0,0.00021418,2]
[374091471,1753199445856,-503.8,0.00021418,2]
[374091472,1753199445866,-460.0,0.00021419,2]
[374091473,1753199445875,-1494.91,0.00021419,2]
[374091474,1753199445884,-1105.59,0.00021419,2]
[374091475,1753199445893,-1158.76,0.00021419,2]
[374091476,1753199445903,-2166.87,0.0002142,2]
[374091477,1753199445912,-590.37,0.00021421,2]
[374091478,1753199445922,-300.0,0.00021479,4]
[374091479,1753199445931,-1309.04860383,0.00021486,5]
[374091480,1753199445941,-800.0,0.0002149,2]
[374091481,1753199445950,-500.0,0.00021625,2]
[374091482,1753199445959,-151.0,0.00021646,5]
[374091483,1753199445969,-1025.58,0.00021692,2]
[374091484,1753199445979,-511.57,0.00021692,2]
[374091485,1753199445988,-460.0,0.00021692,2]
[374091486,1753199445998,-503.8,0.00021692,2]
[374091487,1753199446008,-460.0,0.00021693,2]
[374091489,1753199446019,-1494.91,0.00021693,2]
[374091490,1753199446036,-1105.59,0.00021693,2]
[374091492,1753199446046,-1158.76,0.00021693,2]
[374091494,1753199446056,-2166.87,0.00021694,2]
[374091496,1753199446066,-590.37,0.00021695,2]
[374091497,1753199446075,-1309.04860383,0.00021762,5]
[374091498,1753199446085,-240.2,0.0002181,2]
[374091499,1753199446094,-538.0,0.00021825,2]
[374091500,1753199446106,-538.0,0.00021834,2]
[374091501,1753199446116,-239.84119403,0.00021849,2]
[374091502,1753199446126,-460.0,0.00021862,2]
[374091503,1753199446135,-472.55704682,0.00021862,2]
[374091504,1753199446145,-460.0,0.00021862,2]
[374091505,1753199446155,-460.0,0.00021862,2]
[374091506,1753199446164,-460.0,0.00021862,2]
[374091507,1753199446173,-460.0,0.00021862,2]
[374091508,1753199446182,-202.97774291,0.00021862,2]
[374091509,1753199446193,-460.0,0.00021862,2]
[374091510,1753199446203,-460.0,0.00021862,2]
[374091511,1753199446212,-460.0,0.00021862,2]
[374091512,1753199446222,-1000.0,0.00021865,5]
[374091513,1753199446232,-159.996034,0.00021918,2]
[374091514,1753199446242,-1025.58,0.00021966,2]
[374091515,1753199446251,-511.57,0.00021966,2]
[374091516,1753199446260,-460.0,0.00021966,2]
[374091517,1753199446270,-503.8,0.00021966,2]
[374091518,1753199446280,-460.0,0.00021967,2]
[374091519,1753199446289,-1494.91,0.00021967,2]
[374091520,1753199446299,-1105.59,0.00021967,2]
[374091521,1753199446308,-1158.76,0.00021967,2]
[374091522,1753199446318,-2166.87,0.00021968,2]
[374091523,1753199446328,-590.37,0.00021969,2]
[374091524,1753199446338,-538.0,0.00021987,2]
[374091525,1753199446347,-538.0,0.00021999,2]
[374091526,1753199446357,-286.94,0.00022,7]
[374091527,1753199446366,-583.97,0.00022,7]
[374091528,1753199446376,-5040.78,0.00022,7]
[374091529,1753199446386,-19642.97,0.00022,2]
[374091530,1753199446395,-1309.04860383,0.00022038,6]
[374091531,1753199446404,-151.0,0.00022106,5]
[374091532,1753199446414,-538.0,0.00022107,2]
[374091533,1753199446424,-500.0,0.00022133,2]
[374091534,1753199446434,-460.0,0.00022136,2]
[374091535,1753199446444,-460.0,0.00022136,2]
[374091536,1753199446453,-250.0,0.00022147,2]
[374091537,1753199446463,-1000.0,0.00022173,2]
[374091538,1753199446472,-151.0,0.000222,8]
[374091539,1753199446482,-538.0,0.00022229,2]
[374091540,1753199446491,-1025.58,0.0002224,2]
[374091541,1753199446501,-511.57,0.0002224,2]
[374091542,1753199446512,-460.0,0.0002224,2]
[374091543,1753199446522,-503.8,0.0002224,2]
[374091544,1753199446531,-460.0,0.00022241,2]
[374091545,1753199446541,-1494.91,0.00022241,2]
[374091546,1753199446550,-1105.59,0.00022241,2]
[374091547,1753199446560,-1158.76,0.00022241,2]
[374091548,1753199446570,-2166.87,0.00022242,2]
[374091549,1753199446579,-590.37,0.00022243,2]
[374091550,1753199446589,-1309.04860383,0.00022314,7]
[374091551,1753199446599,-514.04,0.0002234,6]
[374091552,1753199446609,-825.888,0.0002234,7]
[374091553,1753199446619,-1200.0,0.00022356,2]
[374091554,1753199446629,-460.0,0.0002241,2]
[374091555,1753199446638,-460.0,0.0002241,2]
[374091556,1753199446648,-514.04,0.0002244,3]
[374091557,1753199446657,-2031.86,0.00022465,2]
[374091558,1753199446667,-1025.58,0.00022514,2]
[374091559,1753199446677,-511.57,0.00022514,2]
[374091560,1753199446686,-460.0,0.00022514,2]
[374091561,1753199446697,-503.8,0.00022514,2]
[374091562,1753199446706,-460.0,0.00022515,2]
[374091563,1753199446716,-1494.91,0.00022515,2]
[374091564,1753199446726,-1105.59,0.00022515,2]
[374091565,1753199446736,-1158.76,0.00022515,2]
[374091566,1753199446745,-2166.87,0.00022516,2]
[374091567,1753199446755,-590.37,0.00022517,2]
[374091568,1753199446765,-514.04,0.0002254,5]
[374091569,1753199446775,-538.0,0.00022541,2]
[374091570,1753199446784,-648.0,0.00022557,2]
[374091571,1753199446794,-2157.0,0.00022557,2]
[374091572,1753199446803,-968.0,0.00022557,2]
[374091573,1753199446813,-407.0,0.00022557,2]
[374091574,1753199446823,-151.0,0.00022566,5]
[374091575,1753199446832,-538.0,0.0002258,2]
[374091576,1753199446842,-800.0,0.00022586,2]
[374091577,1753199446852,-1309.04860383,0.0002259,7]
[374091578,1753199446863,-514.04,0.0002264,4]
[374091579,1753199446872,-538.0,0.0002268,2]
[374091581,1753199446884,-460.0,0.00022684,2]
[374091583,1753199446894,-460.0,0.00022684,2]
[374091585,1753199446903,-503.42127867,0.00022721,2]
[374091587,1753199446913,-514.04,0.0002274,5]
[374091589,1753199446923,-538.0,0.00022757,2]
[374091591,1753199446933,-1025.58,0.00022788,2]
[374091593,1753199446942,-511.57,0.00022788,2]
[374091595,1753199446952,-490.51,0.00022788,2]
[374091597,1753199446961,-503.8,0.00022788,2]
[374091599,1753199446972,-183.93295182,0.00022789,2]
[374091601,1753199446982,-1494.91,0.00022789,2]
[374091603,1753199446991,-1105.59,0.00022789,2]
[374091605,1753199447001,-1158.76,0.00022789,2]
[374091607,1753199447010,-2166.87,0.0002279,2]
[374091609,1753199447021,-590.37,0.00022791,2]
[374091611,1753199447033,-514.04,0.0002284,3]
[374091613,1753199447043,-1309.04860383,0.00022866,8]
[374091615,1753199447052,-538.0,0.00022879,2]
[374091617,1753199447063,-538.0,0.00022882,2]
[374091619,1753199447073,-538.0,0.00022894,2]
[374091621,1753199447083,-514.04,0.0002294,6]
[374091623,1753199447092,-460.0,0.00022958,2]
[374091625,1753199447103,-460.0,0.00022958,2]
[374091627,1753199447114,-1090.84276416,0.00022977,2]
[374091629,1753199447123,-160.0,0.00023,3]
[374091631,1753199447133,-160.0,0.00023,2]
[374091633,1753199447143,-151.0,0.00023026,6]
[374091635,1753199447153,-514.04,0.0002304,4]
[374091637,1753199447162,-1025.59713982,0.00023062,2]
[374091639,1753199447171,-511.61116879,0.00023062,2]
[374091641,1753199447181,-503.82851167,0.00023062,2]
[374091643,1753199447190,-1495.00770916,0.00023063,2]
[374091645,1753199447200,-1105.77308635,0.00023063,2]